bitfinex-derivatives/quotes_BNBF0:USTF0_20250425
["timestamp","ask_amount","ask_price","bid_price","bid_amount"]
[1745585221289,1.13970708,607.75,606.53,0.30255374]
[1745585221493,1.13970708,607.74,606.53,0.30255374]
[1745585221888,1.13970708,607.73,606.53,0.30255374]
[1745585222087,1.13970708,607.73,606.52,1.03971617]
[1745585222391,1.13970708,607.72,606.53,0.30254863]
[1745585222689,1.25526766,608.65,606.53,0.30254863]
[1745585222690,1.13970708,607.71,606.53,0.30254863]
[1745585223191,1.13970708,607.7,606.53,0.30254863]
[1745585223489,1.13970708,607.69,606.53,0.30254863]
[1745585223695,1.13970708,607.69,606.54,0.30254502]
[1745585223890,1.13970708,607.69,606.51,0.30254502]
[1745585224093,1.13970708,607.69,606.52,0.30254502]
[1745585224294,1.13970708,607.69,606.53,0.30254502]
[1745585224494,1.13970708,607.68,606.54,0.30254502]
[1745585224696,1.13970708,607.67,606.55,0.30254502]
[1745585224890,1.13970708,607.67,606.56,0.30254502]
[1745585225092,1.13970708,607.66,606.52,0.28664978]
[1745585225290,1.13970708,607.66,606.53,0.30254503]
[1745585225491,1.13970708,607.65,606.53,0.30254503]
[1745585225895,1.13970708,607.64,606.53,0.30254503]
[1745585226298,1.13970708,607.63,606.53,0.30254503]
[1745585226798,1.13970708,607.62,606.54,0.30255457]
[1745585226999,1.13970708,607.62,606.53,0.30255457]
[1745585227198,1.13970708,607.61,606.54,0.30255457]
[1745585227494,1.13970708,607.61,606.55,0.30255457]
[1745585227699,1.13970708,607.61,606.56,0.30255457]
[1745585227899,1.13970708,607.6,606.53,0.28666277]
[1745585228098,1.13970708,607.6,606.54,0.30255457]
[1745585228297,1.13970708,607.59,606.54,0.30255457]
[1745585229401,1.13970708,607.58,606.54,0.30255457]
[1745585229696,1.13970708,607.57,606.54,0.30255457]
[1745585230096,1.13970708,607.57,606.53,0.28666277]
[1745585230303,1.25526766,608.65,606.53,0.28666277]
[1745585230304,1.13970708,607.56,606.53,0.28666277]
[1745585230702,1.25526766,608.65,606.4,1.03971617]
[1745585230902,1.25526766,608.65,606.41,0.30253639]
[1745585231505,1.25526766,608.63,606.41,1.34225256]
[1745585231803,1.25526766,608.63,606.42,0.30253639]
[1745585232005,1.42429254,608.62,606.42,0.58908468]
[1745585232198,1.42429254,608.62,606.43,0.30253639]
[1745585232505,1.13774425,608.61,606.43,0.30253639]
[1745585232908,1.13774425,608.61,606.42,0.28654829]
[1745585233104,1.13774425,608.6,606.43,0.30253403]
[1745585233608,1.13774425,608.59,606.43,0.30253403]
[1745585233810,1.13774425,608.59,606.43,1.62953403]
[1745585234009,1.13774425,608.59,606.44,0.30253403]
[1745585234205,1.13774425,608.58,606.44,0.30253403]
[1745585234607,1.13774425,608.58,606.45,0.30251373]
[1745585234809,1.13774425,608.58,606.44,0.30251373]
[1745585235007,1.4242772,608.57,606.45,0.30251373]
[1745585235210,1.4242772,608.57,606.44,0.30251373]
[1745585235510,1.13774425,608.56,606.46,1.303]
[1745585235810,1.13774425,608.55,606.47,0.30251373]
[1745585236407,1.13774425,608.54,606.47,0.30251373]
[1745585237108,1.13774425,608.53,606.47,0.30251373]
[1745585237613,1.25526766,609.05,606.46,1.303]
[1745585237813,1.25526766,609.05,606.48,1.241]
[1745585238113,0.28653531,608.52,606.49,0.30251612]
[1745585238314,1.25526766,608.73,606.51,1.03971617]
[1745585238514,1.25526766,608.73,606.52,0.30251612]
[1745585238813,1.13772619,608.72,606.52,0.30251612]
[1745585239116,1.13772619,608.72,606.51,1.03971617]
[1745585239314,1.13772619,608.71,606.52,0.30254994]
[1745585239516,1.42425914,608.71,606.52,0.30254994]
[1745585239715,1.13772619,608.7,606.52,0.30254994]
[1745585240222,1.13772619,608.69,606.52,0.30254994]
[1745585240823,1.13772619,608.68,606.52,0.30254994]
[1745585241022,1.13772619,608.68,606.51,1.03971617]
[1745585241224,1.13772619,608.68,606.52,0.30256195]
[1745585241523,1.13772619,608.67,606.52,0.30256195]
[1745585241923,1.13772619,608.66,606.52,0.30256195]
[1745585242125,1.13772619,608.65,606.52,0.30256195]
[1745585242524,1.13772619,608.64,606.52,0.30256195]
[1745585243022,1.25526766,608.73,606.51,1.03971617]
[1745585243219,1.13823313,608.72,606.51,1.03971617]
[1745585243523,1.13823313,608.71,606.51,1.03971617]
[1745585243723,1.13823313,608.7,606.51,1.03971617]
[1745585243925,1.42477198,608.7,606.51,1.03971617]
[1745585244118,1.13823313,608.69,606.51,1.03971617]
[1745585244322,1.13823313,608.69,606.52,0.30258273]
[1745585244726,1.13823313,608.68,606.52,0.30258273]
[1745585245327,1.13823313,608.68,606.51,1.03971617]
[1745585245527,1.13823313,608.68,606.52,0.30258279]
[1745585245723,1.13823313,608.68,606.51,1.03971617]
[1745585245930,1.25526766,608.63,606.49,0.28654239]
[1745585246229,1.25526766,608.63,606.5,0.30258703]
[1745585246927,1.13823313,608.62,606.5,0.30258703]
[1745585247329,1.13823313,608.61,606.49,0.28654239]
[1745585247828,1.13823313,608.6,606.49,0.28654239]
[1745585248026,1.13823313,608.59,606.49,0.28654239]
[1745585248624,1.13823313,608.59,606.48,1.241]
[1745585248827,1.13823313,608.58,606.49,0.30258332]
[1745585249027,1.13823313,608.57,606.49,0.58913987]
[1745585249229,1.13823313,608.57,606.5,0.30258332]
[1745585249528,1.13823313,608.56,606.5,0.30258332]
[1745585249724,1.13823313,608.56,606.49,0.28655655]
[1745585249930,0.28655891,608.55,606.49,0.28655655]
[1745585250129,1.13823313,608.54,606.49,0.28655655]
[1745585250429,0.28655891,608.55,606.49,0.28655655]
[1745585250430,1.13823313,608.53,606.5,0.947]
[1745585250928,1.13823313,608.52,606.5,0.947]
[1745585251531,1.13823313,608.51,606.51,1.424]
[1745585251925,1.13823313,608.5,606.51,1.424]
[1745585252126,1.42479557,608.5,606.51,1.424]
[1745585252530,1.13823313,608.49,606.51,1.424]
[1745585253231,1.13823313,608.48,606.51,1.424]
[1745585253832,1.13823313,608.47,606.52,0.30253998]
[1745585255032,1.13823313,608.46,606.52,0.30253998]
[1745585255433,1.13823313,608.45,606.52,0.30253998]
[1745585255927,1.25526766,608.78,606.52,0.30253998]
[1745585255928,1.13823313,608.44,606.52,0.30253998]
[1745585256328,1.13823313,608.43,606.52,0.30253998]
[1745585257035,1.13823313,608.42,606.52,0.30253998]
[1745585257636,1.13823313,608.41,606.52,0.30253998]
[1745585257935,1.42480619,608.41,606.52,0.30253998]
[1745585258135,1.42480619,608.41,606.53,0.30255884]
[1745585258333,1.13823313,608.4,606.54,0.30255884]
[1745585258538,1.13823313,608.39,606.52,0.30255884]
[1745585258737,1.13823313,608.39,606.53,0.30255884]
[1745585258937,1.13823313,608.38,606.52,0.30255884]
[1745585259137,1.13823313,608.38,606.53,0.30255884]
[1745585259333,1.13823313,608.38,606.52,0.30255884]
[1745585259536,1.13823313,608.38,606.51,1.71057306]
[1745585259737,1.13823313,608.37,606.52,0.30255744]
[1745585259936,1.13823313,608.36,606.52,0.30255744]
[1745585260438,1.13823313,608.35,606.52,0.30255744]
[1745585261033,1.13823313,608.34,606.52,0.30255744]
[1745585261238,1.13823313,608.34,606.51,1.424]
[1745585261239,1.13823313,608.34,606.53,0.30255819]
[1745585261433,1.13823313,608.33,606.54,0.30255819]
[1745585261639,1.13823313,608.33,606.55,0.30255819]
[1745585261938,1.13823313,608.32,606.56,0.30255819]
[1745585262237,1.13823313,608.32,606.57,0.30255819]
[1745585262439,1.13823313,608.32,606.54,0.30255819]
[1745585262639,1.13823313,608.32,606.55,0.30255819]
[1745585262834,1.13823313,608.31,606.54,0.30255819]
[1745585263037,1.13823313,608.31,606.55,0.30255819]
[1745585263238,1.13823313,608.3,606.54,0.30255819]
[1745585263534,1.13823313,608.3,606.55,0.30255819]
[1745585263739,1.13823313,608.3,606.56,0.30255819]
[1745585263939,1.13823313,608.29,606.53,1.004]
[1745585264439,1.13823313,608.28,606.53,1.004]
[1745585264840,1.13823313,608.27,606.53,1.004]
[1745585265341,1.25526766,608.51,606.53,1.004]
[1745585266845,1.25526766,608.83,606.53,1.004]
[1745585267239,1.13925615,608.82,606.53,1.004]
[1745585267643,1.13925615,608.81,606.53,1.004]
[1745585268747,1.13925615,608.8,606.53,1.004]
[1745585269243,1.13925615,608.79,606.53,1.004]
[1745585269550,1.13925615,608.78,606.53,1.004]
[1745585270147,1.13925615,608.77,606.53,1.004]
[1745585270643,1.13925615,608.76,606.53,1.004]
[1745585271049,1.13925615,608.75,606.53,1.004]
[1745585271246,1.13925615,608.74,606.53,1.004]
[1745585271848,1.13925615,608.73,606.53,1.004]
[1745585272150,1.13925615,608.72,606.53,1.004]
[1745585272545,1.13925615,608.71,606.53,1.004]
[1745585272947,1.13925615,608.7,606.53,1.004]
[1745585273545,1.13925615,608.69,606.53,1.004]
[1745585274251,1.13925615,608.68,606.53,1.004]
[1745585274452,1.25526766,608.26,606.53,1.004]
[1745585274752,1.13925615,608.25,606.53,1.004]
[1745585275152,1.13925615,608.24,606.53,1.004]
[1745585275655,1.4258835,608.24,606.53,1.004]
[1745585275854,1.13925615,608.23,606.53,1.004]
[1745585276255,1.13925615,608.22,606.53,1.004]
[1745585276555,1.13925615,608.21,606.53,1.004]
[1745585276755,1.13925615,608.2,606.53,1.004]
[1745585277155,1.13925615,608.19,606.53,1.004]
[1745585277555,1.13925615,608.18,606.53,1.004]
[1745585277950,1.13925615,608.17,606.53,1.004]
[1745585278555,1.13925615,608.16,606.53,1.004]
[1745585279055,1.25526766,608.34,606.53,1.004]
[1745585279356,1.42519309,608.15,606.53,2.285]
[1745585279656,1.13853032,608.14,606.53,2.285]
[1745585280156,1.13853032,608.13,606.53,2.285]
[1745585280855,0.28667812,608.12,606.53,2.285]
[1745585281156,1.42520844,608.12,606.53,3.185]
[1745585281656,1.13853032,608.12,606.53,3.185]
[1745585281851,1.13853032,608.11,606.53,3.185]
[1745585282059,1.13853032,608.1,606.53,3.185]
[1745585282354,1.13853032,608.09,606.53,3.185]
[1745585282750,1.13853032,608.08,606.53,3.185]
[1745585283357,1.13853032,608.07,606.53,3.185]
[1745585283855,1.13853032,608.06,606.53,3.185]
[1745585284057,1.13853032,608.06,606.53,4.486]
[1745585284557,1.13853032,608.05,606.53,4.486]
[1745585285055,1.13853032,608.04,606.53,4.486]
[1745585285659,1.13853032,608.03,606.53,4.486]
[1745585286053,1.13853032,608.02,606.53,4.486]
[1745585286658,1.13853032,608.01,606.53,4.486]
[1745585286854,1.13853032,608.0,606.53,4.486]
[1745585287553,1.13853032,607.99,606.53,4.486]
[1745585287956,1.13853032,607.98,606.53,4.486]
[1745585288459,1.13853032,607.97,606.53,4.486]
[1745585288955,1.13853032,607.96,606.53,4.486]
[1745585289355,1.13853032,607.95,606.53,4.486]
[1745585289759,1.13853032,607.94,606.53,4.486]
[1745585290355,1.13853032,607.93,606.53,4.486]
[1745585290860,1.13853032,607.92,606.53,4.486]
[1745585291455,1.13853032,607.91,606.53,4.486]
[1745585292061,1.13853032,607.9,606.53,4.486]
[1745585292756,1.13853032,607.89,606.53,4.486]
[1745585293367,1.13853032,607.88,606.53,4.486]
[1745585293665,1.13853032,607.87,606.53,4.486]
[1745585293964,0.28671591,608.03,606.53,4.486]
[1745585295663,1.13389914,608.02,606.53,4.486]
[1745585295860,0.28671591,608.03,606.53,4.486]
[1745585298872,1.13402578,608.02,606.53,4.486]
[1745585299462,1.13402578,608.01,606.53,4.486]
[1745585299962,0.28671827,608.0,606.53,4.486]
[1745585300568,1.13402578,607.99,606.53,4.486]
[1745585300966,1.13402578,607.98,606.53,4.486]
[1745585301569,1.13402578,607.97,606.53,4.486]
[1745585301870,1.13402578,607.96,606.53,4.486]
[1745585302469,1.13402578,607.95,606.53,4.486]
[1745585303271,1.42082203,607.94,606.53,4.486]
[1745585303766,1.13402578,607.93,606.53,4.486]
[1745585304671,1.13402578,607.92,606.53,4.486]
[1745585305266,1.13402578,607.91,606.53,4.486]
[1745585305570,1.13402578,607.9,606.53,4.486]
[1745585305771,1.13402578,607.89,606.53,4.486]
[1745585305965,1.13402578,607.88,606.53,4.486]
[1745585306466,1.13402578,607.87,606.53,4.486]
[1745585307067,1.13402578,607.86,606.53,4.486]
[1745585307273,1.13402578,607.85,606.53,4.486]
[1745585307466,1.13402578,607.84,606.53,4.486]
[1745585307772,1.13402578,607.83,606.53,4.486]
[1745585308373,1.13402578,607.82,606.53,4.486]
[1745585308968,1.13402578,607.81,606.53,4.486]
[1745585309268,1.42084921,607.81,606.53,4.486]
[1745585309669,1.13402578,607.8,606.53,4.486]
[1745585310474,1.13402578,607.79,606.53,4.486]
[1745585311275,1.13402578,607.78,606.53,4.486]
[1745585311570,1.13402578,607.77,606.53,4.486]
[1745585312180,1.13402578,607.76,606.53,4.486]
[1745585312579,1.13402578,607.75,606.53,4.486]
[1745585313080,0.28684116,607.74,606.53,4.486]
[1745585313276,1.13402578,607.73,606.53,4.486]
[1745585314177,1.13402578,607.72,606.53,4.486]
[1745585314977,1.13402578,607.71,606.53,4.486]
[1745585315477,1.13402578,607.7,606.53,4.486]
[1745585315776,1.13402578,607.69,606.53,4.486]
[1745585316581,1.13402578,607.68,606.53,4.486]
[1745585317083,1.13402578,607.67,606.53,4.486]
[1745585317584,1.13402578,607.66,606.53,4.486]
[1745585318386,1.13402578,607.65,606.53,4.486]
[1745585318685,1.13402578,607.64,606.53,4.486]
[1745585318986,1.13402578,607.63,606.53,4.486]
[1745585319183,1.13402578,607.62,606.53,4.486]
[1745585319594,1.13402578,607.61,606.53,4.486]
[1745585320116,1.13402578,607.6,606.53,4.486]
[1745585320708,1.13402578,607.59,606.53,4.486]
[1745585321009,1.13402578,607.58,606.53,4.486]
[1745585321310,1.42089295,607.58,606.53,4.486]
[1745585321513,1.13402578,607.57,606.53,4.486]
[1745585321908,1.13402578,607.56,606.53,4.486]
[1745585322605,1.13402578,607.55,606.53,4.486]
[1745585322811,1.13402578,607.55,606.53,3.24915837]
[1745585323003,1.13402578,607.55,606.53,2.201]
[1745585323397,1.13402578,607.54,606.53,2.201]
[1745585324091,1.42093434,607.53,606.53,2.201]
[1745585324492,1.13402578,607.52,606.53,2.201]
[1745585324890,1.13402578,607.51,606.53,2.201]
[1745585325597,1.13402578,607.5,606.53,2.201]
[1745585326400,1.13402578,607.49,606.53,2.201]
[1745585326794,1.13402578,607.48,606.53,2.201]
[1745585326993,1.42095208,607.48,606.53,2.201]
[1745585327396,1.13402578,607.47,606.53,2.201]
[1745585327696,1.13402578,607.46,605.53,0.994]
[1745585327895,1.13402578,607.46,605.54,0.30311772]
[1745585328200,1.13402578,607.45,605.54,0.30311772]
[1745585328998,1.13402578,607.44,605.54,0.30311772]
[1745585329499,1.13402578,607.44,605.53,0.994]
[1745585329703,1.13402578,607.43,605.53,0.994]
[1745585330001,1.13402578,607.42,605.53,2.103]
[1745585330194,1.13402578,607.41,605.53,3.447]
[1745585330596,1.13402578,607.4,605.53,3.447]
[1745585331101,1.13402578,607.39,605.53,3.447]
[1745585332003,1.13402578,607.38,605.53,3.447]
[1745585332604,1.13402578,607.37,605.53,3.447]
[1745585333305,1.13402578,607.36,605.53,3.447]
[1745585333710,1.13402578,607.36,605.54,0.3030671]
[1745585334007,0.28704819,607.4,605.54,0.3030671]
[1745585334709,1.10602778,607.39,605.54,0.3030671]
[1745585335110,1.10602778,607.38,605.54,0.3030671]
[1745585335610,1.10602778,607.37,605.54,0.3030671]
[1745585336110,1.10602778,607.36,605.54,0.3030671]
[1745585336311,1.10602778,607.36,605.53,3.447]
[1745585336811,1.10602778,607.35,605.54,0.30307855]
[1745585337208,1.10602778,607.35,605.53,3.447]
[1745585337409,1.10602778,607.35,605.54,0.30307986]
[1745585337609,1.10602778,607.34,605.54,0.30307986]
[1745585338111,1.10602778,607.33,605.54,0.30307986]
[1745585339007,1.10602778,607.32,605.54,0.30307986]
[1745585339313,1.10602778,607.32,605.53,3.447]
[1745585339508,1.10602778,607.32,605.54,0.30308343]
[1745585339911,1.10602778,607.31,605.54,0.30308343]
[1745585340214,1.10602778,607.3,605.54,0.30308343]
[1745585340710,1.10602778,607.3,605.53,3.73405766]
[1745585340912,1.10602778,607.3,605.54,0.30311078]
[1745585341213,1.10602778,607.29,605.54,0.30311078]
[1745585341514,1.10602778,607.28,605.54,0.30311078]
[1745585341813,1.10602778,607.27,605.54,0.30311078]
[1745585342513,1.10602778,607.26,605.54,0.30311078]
[1745585343107,1.10602778,607.25,605.54,0.30311078]
[1745585343710,1.10602778,607.24,605.54,0.30311078]
[1745585343915,1.10602778,607.23,605.54,0.30311078]
[1745585344316,1.10602778,607.22,605.54,0.30311078]
[1745585344612,1.10602778,607.21,605.54,0.30311078]
[1745585345217,1.10602778,607.2,605.53,3.447]
[1745585345515,1.25526766,607.66,605.53,3.447]
[1745585346116,0.28701504,607.65,605.53,3.73401504]
[1745585346318,1.39464158,607.65,605.53,3.73401504]
[1745585347018,1.10762654,607.64,605.53,3.73401504]
[1745585347619,1.10762654,607.63,605.53,3.73401504]
[1745585347818,1.10762654,607.63,605.53,3.447]
[1745585348013,0.28704582,607.62,605.53,3.447]
[1745585348418,1.10762654,607.61,605.53,3.447]
[1745585348619,1.10762654,607.61,605.54,0.30311014]
[1745585348814,1.10762654,607.6,605.54,0.30311014]
[1745585349119,1.10762654,607.59,605.54,0.30311014]
[1745585349421,1.10762654,607.59,605.54,1.369]
[1745585349622,1.10762654,607.58,605.54,1.369]
[1745585350314,1.10762654,607.57,605.54,1.369]
[1745585350718,1.10762654,607.56,605.54,1.369]
[1745585351119,0.28706831,607.55,605.54,1.369]
[1745585351414,1.10762654,607.54,605.54,1.369]
[1745585351919,1.10762654,607.53,605.54,2.452]
[1745585352420,1.10762654,607.52,605.54,2.452]
[1745585353121,1.10762654,607.51,605.54,2.452]
[1745585354023,1.39470078,607.5,605.54,2.452]
[1745585354420,1.10762654,607.49,605.54,2.452]
[1745585355020,1.10762654,607.48,605.54,2.452]
[1745585355421,1.10762654,607.47,605.54,2.452]
[1745585355619,1.10762654,607.46,605.54,2.452]
[1745585356124,1.10762654,607.45,605.54,3.839]
[1745585356424,1.10762654,607.44,605.54,3.839]
[1745585357123,1.39473512,607.43,605.54,3.839]
[1745585357524,1.10762654,607.42,605.54,3.839]
[1745585358331,1.10762654,607.41,605.54,3.839]
[1745585358724,1.10762654,607.4,605.54,3.839]
[1745585359733,1.10762654,607.39,605.54,3.839]
[1745585359927,1.10762654,607.38,605.54,3.839]
[1745585360129,1.10762654,607.37,605.54,3.839]
[1745585361027,1.10762654,607.36,605.54,3.839]
[1745585361729,1.10762654,607.35,605.54,3.839]
[1745585362630,1.10762654,607.34,605.54,3.839]
[1745585363029,1.39476828,607.33,605.54,3.839]
[1745585363530,1.10762654,607.32,605.54,3.839]
[1745585363831,1.10762654,607.31,605.54,3.839]
[1745585364330,1.10762654,607.3,605.54,3.839]
[1745585364527,1.10762654,607.29,605.54,3.839]
[1745585364834,1.10762654,607.28,605.54,3.839]
[1745585365133,1.10762654,607.27,605.54,3.839]
[1745585365528,1.10762654,607.26,605.54,3.839]
[1745585365829,1.10762654,607.26,605.54,4.964]
[1745585366929,1.10762654,607.25,605.54,4.964]
[1745585367334,1.10762654,607.24,605.54,4.964]
[1745585367534,1.10762654,607.23,605.54,4.964]
[1745585368132,1.10762654,607.22,605.54,4.964]
[1745585368630,1.10762654,607.21,605.54,4.964]
[1745585369534,1.10762654,607.2,605.54,4.964]
[1745585369834,1.10762654,607.19,605.54,4.964]
[1745585370531,1.10762654,607.18,605.54,4.964]
[1745585371134,1.10762654,607.17,605.54,4.964]
[1745585371935,1.10762654,607.16,605.54,4.964]
[1745585372135,1.39481923,607.16,605.54,4.964]
[1745585372536,1.10762654,607.15,605.54,4.964]
[1745585373437,1.10762654,607.14,605.54,4.964]
[1745585373735,1.10762654,607.13,605.54,4.964]
[1745585374130,1.10762654,607.12,605.54,4.964]
[1745585374437,1.10762654,607.11,605.54,4.964]
[1745585375437,1.10762654,607.1,605.54,4.964]
[1745585376037,0.28719151,607.09,605.54,4.964]
[1745585376237,1.39481805,607.09,605.54,4.964]
[1745585376837,1.10762654,607.08,605.54,4.964]
[1745585377341,1.10762654,607.07,605.54,4.964]
[1745585377937,0.28720691,607.06,605.54,4.964]
[1745585378436,1.10762654,607.05,605.54,4.964]
[1745585379142,1.10762654,607.04,605.54,4.964]
[1745585379841,1.10762654,607.03,605.54,4.964]
[1745585380041,1.10762654,607.02,605.54,4.964]
[1745585380742,1.10762654,607.01,605.54,4.964]
[1745585380940,1.39483938,607.01,605.54,4.964]
[1745585381844,1.10762654,607.0,605.54,4.964]
[1745585382551,1.10762654,606.99,605.54,4.964]
[1745585383248,1.10762654,606.98,605.54,4.964]
[1745585383446,1.10762654,606.97,605.54,4.964]
[1745585383747,1.10762654,606.96,605.54,4.964]
[1745585384050,1.39486309,606.96,605.54,4.964]
[1745585384251,1.10762654,606.95,605.54,4.964]
[1745585384946,1.10762654,606.94,605.54,4.964]
[1745585386153,1.10762654,606.93,605.54,4.964]
[1745585386547,1.10762654,606.92,605.54,4.964]
[1745585386743,1.10762654,606.91,605.54,4.964]
[1745585386943,1.39485834,606.91,605.54,4.964]
[1745585387452,1.10762654,606.9,605.54,4.964]
[1745585388150,1.10762654,606.89,605.54,4.964]
[1745585389251,1.10762654,606.88,605.54,4.964]
[1745585390158,1.10762654,606.87,605.54,4.964]
[1745585391456,1.10762654,606.86,605.54,4.964]
[1745585391856,1.10762654,606.85,605.54,4.964]
[1745585392153,1.10762654,606.84,605.54,4.964]
[1745585392954,1.10762654,606.83,605.54,4.964]
[1745585393456,1.10762654,606.82,605.54,4.964]
[1745585393754,1.10762654,606.81,605.54,4.964]
[1745585394460,1.10762654,606.8,605.54,4.964]
[1745585395160,1.10762654,606.79,605.54,4.964]
[1745585395455,1.10762654,606.78,605.54,4.964]
[1745585395956,1.10762654,606.77,605.54,4.964]
[1745585396557,1.10762654,606.76,605.54,4.964]
[1745585397460,1.10762654,606.75,605.54,4.964]
[1745585397659,1.10762654,606.74,605.54,4.964]
[1745585398764,1.10762654,606.73,605.54,4.964]
[1745585399361,1.10762654,606.72,605.54,4.964]
[1745585400360,1.10762654,606.71,605.54,4.964]
[1745585401161,1.10762654,606.7,605.54,4.964]
[1745585401660,1.10762654,606.69,605.54,4.964]
[1745585402159,1.10762654,606.68,605.54,4.964]
[1745585402464,1.10762654,606.67,605.54,4.964]
[1745585403164,1.10762654,606.66,605.54,4.964]
[1745585403866,1.10762654,606.65,605.54,4.964]
[1745585404465,1.10762654,606.64,605.54,4.964]
[1745585404667,1.10762654,606.63,605.54,4.964]
[1745585405267,1.10762654,606.62,605.54,4.964]
[1745585405766,1.10762654,606.61,605.54,4.964]
[1745585406768,1.10762654,606.6,605.54,4.964]
[1745585407369,1.10762654,606.59,605.54,4.964]
[1745585407970,1.10762654,606.58,605.54,4.964]
[1745585408669,1.10762654,606.57,605.54,4.964]
[1745585409575,1.10762654,606.56,605.54,4.964]
[1745585410074,1.10762654,606.56,605.54,3.839]
[1745585410267,1.10762654,606.55,605.54,2.452]
[1745585410573,1.10762654,606.54,605.54,2.452]
[1745585410874,1.10762654,606.53,605.54,2.452]
[1745585411275,1.10762654,606.52,605.54,1.083]
[1745585411771,1.10762654,606.51,605.54,1.083]
[1745585412276,0.28723299,607.0,605.54,1.083]
[1745585412277,1.10762654,606.5,605.54,1.083]
[1745585412970,1.10762654,606.49,605.54,1.083]
[1745585413170,1.10762654,606.49,605.16,0.28723299]
[1745585413476,1.10762654,606.48,605.17,0.30327062]
[1745585413669,1.11800235,606.47,605.17,0.30327062]
[1745585413873,1.11800235,606.46,605.17,0.30327062]
[1745585414574,1.11800235,606.45,605.17,0.30327062]
[1745585414970,1.11800235,606.44,605.17,0.30327062]
[1745585415375,1.11800235,606.43,605.17,0.30327062]
[1745585415575,1.11800235,606.43,605.18,0.30326488]
[1745585415776,1.11800235,606.43,605.17,0.30326488]
[1745585415975,1.11800235,606.42,605.16,0.28723299]
[1745585416276,1.11800235,606.41,605.16,0.28723299]
[1745585416873,1.11800235,606.4,605.08,1.03971617]
[1745585417078,1.11800235,606.39,605.16,0.28731362]
[1745585417278,1.11800235,606.39,605.08,1.03971617]
[1745585417577,1.11800235,606.39,605.09,0.30327049]
[1745585417779,1.11800235,606.38,605.09,0.30327049]
[1745585417981,1.11800235,606.37,605.09,0.30327049]
[1745585418479,1.11800235,606.37,605.08,1.03971617]
[1745585418680,1.11800235,606.36,605.1,0.28732785]
[1745585418979,1.11800235,606.36,605.11,0.30326996]
[1745585419575,1.11800235,606.35,605.11,0.30326996]
[1745585419977,1.11800235,606.35,605.1,0.28732785]
[1745585420174,1.11800235,606.34,605.11,0.30326867]
[1745585420883,1.11800235,606.33,605.1,0.28732785]
[1745585421281,1.11800235,606.32,605.1,0.28732785]
[1745585421781,1.11800235,606.31,605.11,0.3032651]
[1745585422382,1.11800235,606.3,605.11,0.3032651]
[1745585422582,1.11800235,606.3,605.1,0.28732785]
[1745585422783,1.11800235,606.3,605.01,1.03971617]
[1745585422984,1.11800235,606.29,605.02,0.30326927]
[1745585423280,1.11800235,606.28,605.03,0.30326927]
[1745585423486,1.11800235,606.28,605.02,0.30326927]
[1745585424087,1.11800235,606.27,605.02,0.30326927]
[1745585424287,1.11800235,606.26,605.02,0.30326927]
[1745585424584,1.11800235,606.26,605.03,0.28734802]
[1745585424788,1.11800235,606.26,605.04,0.30326121]
[1745585424984,1.11800235,606.25,605.04,0.30326121]
[1745585425589,1.11800235,606.24,605.04,0.30326121]
[1745585426290,1.11800235,606.23,605.04,0.30326121]
[1745585427191,1.11800235,606.22,605.04,0.30326121]
[1745585427690,1.11800235,606.21,605.04,0.30326121]
[1745585427987,1.11800235,606.21,605.05,0.30321832]
[1745585428192,1.11800235,606.21,605.04,0.30321832]
[1745585428392,1.11800235,606.21,605.19,1.03971617]
[1745585428592,1.11800235,606.2,605.2,0.30321832]
[1745585428985,1.11800235,606.19,605.2,0.30321832]
[1745585429390,1.11800235,606.18,605.2,0.30321832]
[1745585429687,1.11800235,606.17,605.2,0.30321832]
[1745585430089,1.11800235,606.16,605.2,0.30321832]
[1745585430792,1.11800235,606.15,605.2,0.30321832]
[1745585431491,1.11800235,606.14,605.2,0.30321832]
[1745585431794,1.11800235,606.13,605.2,0.30321832]
[1745585432397,1.11800235,606.13,605.19,1.03971617]
[1745585432703,1.11800235,606.13,605.2,0.30321832]
[1745585432894,1.11800235,606.12,605.2,0.30321832]
[1745585433098,1.11800235,606.11,605.2,0.30321832]
[1745585433696,1.11800235,606.1,605.2,0.30321832]
[1745585434902,1.11800235,606.09,605.2,0.30321832]
[1745585435301,1.11800235,606.08,605.2,0.30321832]